[Event "Late-Titled-Tuesday-Blitz-April-16-2024"]
[Site "Chess.com"]
[Date "2024.04.16"]
[Round "10"]
[White "Statham_01"]
[Black "SergioMoralesG"]
[Result "1/2-1/2"]
[WhiteElo "2588"]
[BlackElo "2440"]
[TimeControl "180+1"]
[EndTime "15:58:04 PDT"]
[Termination "Game drawn - insufficient material"]

1. e4 {[%clk 0:03:00.9]} 1... c5 {[%clk 0:02:56.3]} 2. a3 {[%clk 0:03:00.5]}
2... Nc6 {[%clk 0:02:55.8]} 3. b4 {[%clk 0:02:59.3]} 3... cxb4 {[%clk 0:02:55]}
4. axb4 {[%clk 0:03:00]} 4... Nxb4 {[%clk 0:02:55.6]} 5. c3 {[%clk 0:02:58.2]}
5... Nc6 {[%clk 0:02:55.5]} 6. d4 {[%clk 0:02:58.9]} 6... d5 {[%clk 0:02:55.5]}
7. exd5 {[%clk 0:02:59.8]} 7... Qxd5 {[%clk 0:02:54.7]} 8. Na3 {[%clk
0:03:00.4]} 8... Nf6 {[%clk 0:02:52]} 9. Nb5 {[%clk 0:03:00.6]} 9... Qd8 {[%clk
0:02:40.5]} 10. d5 {[%clk 0:03:01]} 10... Ne5 {[%clk 0:02:24.9]} 11. Bf4 {[%clk
0:03:00.1]} 11... Nfd7 {[%clk 0:02:25.1]} 12. Nf3 {[%clk 0:02:55.7]} 12... f6
{[%clk 0:02:22]} 13. Bd3 {[%clk 0:02:41.5]} 13... g6 {[%clk 0:02:13]} 14. Nfd4
{[%clk 0:02:41.6]} 14... Nc5 {[%clk 0:02:07]} 15. Bc2 {[%clk 0:02:25.1]} 15...
Bg7 {[%clk 0:02:00.7]} 16. O-O {[%clk 0:02:21.7]} 16... O-O {[%clk 0:01:58.9]}
17. Nxa7 {[%clk 0:02:21.7]} 17... Bd7 {[%clk 0:01:50.5]} 18. Nab5 {[%clk
0:02:14.5]} 18... Rxa1 {[%clk 0:01:39.5]} 19. Qxa1 {[%clk 0:02:15.4]} 19... Bxb5
{[%clk 0:01:39.6]} 20. Nxb5 {[%clk 0:02:16.3]} 20... Qxd5 {[%clk 0:01:38.7]} 21.
Rd1 {[%clk 0:02:16.1]} 21... Qc6 {[%clk 0:01:30.6]} 22. Nd4 {[%clk 0:02:16]}
22... Qc8 {[%clk 0:01:30.8]} 23. Qa2+ {[%clk 0:02:15.8]} 23... Kh8 {[%clk
0:01:29.9]} 24. h3 {[%clk 0:02:16.4]} 24... Rd8 {[%clk 0:01:25]} 25. Re1 {[%clk
0:02:15]} 25... Qd7 {[%clk 0:01:06.6]} 26. Bxe5 {[%clk 0:02:13.4]} 26... fxe5
{[%clk 0:01:06.6]} 27. Nf3 {[%clk 0:02:14.3]} 27... Qd5 {[%clk 0:00:57.1]} 28.
Qa5 {[%clk 0:02:11.1]} 28... Nd3 {[%clk 0:00:47.3]} 29. Qxd5 {[%clk 0:02:10.6]}
29... Rxd5 {[%clk 0:00:48.2]} 30. Rb1 {[%clk 0:02:08]} 30... e4 {[%clk
0:00:42.1]} 31. c4 {[%clk 0:01:59.7]} 31... Ra5 {[%clk 0:00:13.2]} 32. Nd2
{[%clk 0:01:58.7]} 32... Ra2 {[%clk 0:00:12.3]} 33. Nxe4 {[%clk 0:01:09.1]}
33... Rxc2 {[%clk 0:00:10.9]} 34. Rxb7 {[%clk 0:01:10]} 34... Bf6 {[%clk
0:00:07.5]} 35. Rd7 {[%clk 0:00:58]} 35... Ne5 {[%clk 0:00:05.3]} 36. Rd8+
{[%clk 0:00:57.6]} 36... Kg7 {[%clk 0:00:05.8]} 37. c5 {[%clk 0:00:58.3]} 37...
Kf7 {[%clk 0:00:04.4]} 38. Kh2 {[%clk 0:00:54]} 38... h5 {[%clk 0:00:04.2]} 39.
f4 {[%clk 0:00:53.3]} 39... Nc6 {[%clk 0:00:03.1]} 40. Rc8 {[%clk 0:00:52.5]}
40... Nd4 {[%clk 0:00:03.4]} 41. Rd8 {[%clk 0:00:25.8]} 41... Ke6 {[%clk
0:00:03.7]} 42. Nxf6 {[%clk 0:00:24.9]} 42... exf6 {[%clk 0:00:04.1]} 43. Rd6+
{[%clk 0:00:23.8]} 43... Ke7 {[%clk 0:00:03.6]} 44. Rxd4 {[%clk 0:00:24.2]}
44... Rxc5 {[%clk 0:00:04.3]} 45. Kg3 {[%clk 0:00:23.4]} 45... Ke6 {[%clk
0:00:04.3]} 46. Rd3 {[%clk 0:00:22]} 46... g5 {[%clk 0:00:04.6]} 47. Rf3 {[%clk
0:00:17.5]} 47... Kf5 {[%clk 0:00:04.3]} 48. fxg5+ {[%clk 0:00:17.5]} 48... Kxg5
{[%clk 0:00:05.2]} 49. Rd3 {[%clk 0:00:16]} 49... h4+ {[%clk 0:00:05]} 50. Kf3
{[%clk 0:00:15.8]} 50... Rc4 {[%clk 0:00:05.9]} 51. Rd5+ {[%clk 0:00:15.3]}
51... f5 {[%clk 0:00:06.5]} 52. Rd8 {[%clk 0:00:15.5]} 52... Rf4+ {[%clk
0:00:07]} 53. Ke3 {[%clk 0:00:16.1]} 53... Ra4 {[%clk 0:00:07.5]} 54. Rg8+
{[%clk 0:00:15.7]} 54... Kf6 {[%clk 0:00:08]} 55. Rh8 {[%clk 0:00:15.3]} 55...
Kg5 {[%clk 0:00:08.3]} 56. Rg8+ {[%clk 0:00:15.3]} 56... Kf6 {[%clk 0:00:08.8]}
57. Kf2 {[%clk 0:00:15.9]} 57... Rb4 {[%clk 0:00:08.1]} 58. Rf8+ {[%clk
0:00:15.6]} 58... Kg5 {[%clk 0:00:08.2]} 59. Rh8 {[%clk 0:00:16.3]} 59... Ra4
{[%clk 0:00:07.9]} 60. Kf3 {[%clk 0:00:14]} 60... Ra3+ {[%clk 0:00:08.1]} 61.
Kf2 {[%clk 0:00:14.6]} 61... Ra2+ {[%clk 0:00:09]} 62. Kg1 {[%clk 0:00:15]}
62... Ra1+ {[%clk 0:00:09.1]} 63. Kh2 {[%clk 0:00:15.2]} 63... Ra4 {[%clk
0:00:09.8]} 64. Rg8+ {[%clk 0:00:15.4]} 64... Kf6 {[%clk 0:00:10.1]} 65. Rb8
{[%clk 0:00:16.1]} 65... Kg5 {[%clk 0:00:10]} 66. Rb3 {[%clk 0:00:16.6]} 66...
Ra2 {[%clk 0:00:09.3]} 67. Kg1 {[%clk 0:00:16.3]} 67... Ra1+ {[%clk 0:00:09.6]}
68. Kf2 {[%clk 0:00:16.3]} 68... Ra2+ {[%clk 0:00:10.5]} 69. Kf3 {[%clk
0:00:16.8]} 69... Ra4 {[%clk 0:00:11.3]} 70. Rd3 {[%clk 0:00:14]} 70... Rf4+
{[%clk 0:00:10.5]} 71. Ke3 {[%clk 0:00:14.2]} 71... Ra4 {[%clk 0:00:11.4]} 72.
Kf2 {[%clk 0:00:14.3]} 72... Ra2+ {[%clk 0:00:11]} 73. Kf3 {[%clk 0:00:14]}
73... Ra4 {[%clk 0:00:11.9]} 74. g3 {[%clk 0:00:14.2]} 74... hxg3 {[%clk
0:00:11.7]} 75. Kxg3 {[%clk 0:00:15]} 75... Rb4 {[%clk 0:00:12.2]} 76. Rf3
{[%clk 0:00:13.5]} 76... Ra4 {[%clk 0:00:12.3]} 77. Rd3 {[%clk 0:00:12.4]} 77...
Rb4 {[%clk 0:00:12.4]} 78. Ra3 {[%clk 0:00:12.2]} 78... Rc4 {[%clk 0:00:12.7]}
79. Ra8 {[%clk 0:00:11.5]} 79... Rc3+ {[%clk 0:00:12.8]} 80. Kf2 {[%clk
0:00:11.9]} 80... Kf4 {[%clk 0:00:13.2]} 81. Ra4+ {[%clk 0:00:11.8]} 81... Kg5
{[%clk 0:00:13.6]} 82. Kg2 {[%clk 0:00:10.8]} 82... Rc2+ {[%clk 0:00:13.3]} 83.
Kf3 {[%clk 0:00:10.2]} 83... Rc3+ {[%clk 0:00:14.2]} 84. Kg2 {[%clk 0:00:10.7]}
84... Rc2+ {[%clk 0:00:14.7]} 85. Kf1 {[%clk 0:00:10.4]} 85... Rc3 {[%clk
0:00:15.6]} 86. h4+ {[%clk 0:00:10]} 86... Kh5 {[%clk 0:00:15.4]} 87. Kg2 {[%clk
0:00:09.9]} 87... Rb3 {[%clk 0:00:14.1]} 88. Rf4 {[%clk 0:00:09.7]} 88... Rc3
{[%clk 0:00:12.7]} 89. Kh2 {[%clk 0:00:08.9]} 89... Rb3 {[%clk 0:00:12.4]} 90.
Kg2 {[%clk 0:00:08.9]} 90... Rc3 {[%clk 0:00:12.5]} 91. Kf2 {[%clk 0:00:09.1]}
91... Rb3 {[%clk 0:00:12.7]} 92. Ke2 {[%clk 0:00:09.7]} 92... Ra3 {[%clk
0:00:12.6]} 93. Kd2 {[%clk 0:00:10.3]} 93... Rb3 {[%clk 0:00:13]} 94. Kc2 {[%clk
0:00:10.9]} 94... Rh3 {[%clk 0:00:13.7]} 95. Rxf5+ {[%clk 0:00:10.6]} 95... Kxh4
{[%clk 0:00:13.7]} 96. Rd5 {[%clk 0:00:11.5]} 96... Rg3 {[%clk 0:00:13.6]} 97.
Kd2 {[%clk 0:00:11.4]} 97... Kg4 {[%clk 0:00:13.6]} 98. Ke2 {[%clk 0:00:11.8]}
98... Rg2+ {[%clk 0:00:13.6]} 99. Ke3 {[%clk 0:00:11.7]} 99... Rg3+ {[%clk
0:00:14.1]} 100. Kf2 {[%clk 0:00:11.9]} 100... Ra3 {[%clk 0:00:14.1]} 101. Rd4+
{[%clk 0:00:11.9]} 101... Kf5 {[%clk 0:00:14.4]} 102. Rd2 {[%clk 0:00:12.8]}
102... Rb3 {[%clk 0:00:13.6]} 103. Re2 {[%clk 0:00:12.8]} 103... Rb5 {[%clk
0:00:13.6]} 104. Rd2 {[%clk 0:00:13.3]} 104... Re5 {[%clk 0:00:13.8]} 105. Kf3
{[%clk 0:00:13.4]} 105... Rb5 {[%clk 0:00:13.6]} 106. Rd6 {[%clk 0:00:13.5]}
106... Rb3+ {[%clk 0:00:13.7]} 107. Kf2 {[%clk 0:00:14.1]} 107... Rb2+ {[%clk
0:00:14.2]} 108. Kf3 {[%clk 0:00:14.7]} 108... Rb3+ {[%clk 0:00:14.5]} 109. Ke2
{[%clk 0:00:15.1]} 109... Rb2+ {[%clk 0:00:15.1]} 110. Ke3 {[%clk 0:00:15.3]}
110... Rb3+ {[%clk 0:00:15.5]} 111. Kd4 {[%clk 0:00:15.8]} 111... Rb4+ {[%clk
0:00:15.7]} 112. Kc5 {[%clk 0:00:16.3]} 112... Rh4 {[%clk 0:00:15.4]} 113. Rd5+
{[%clk 0:00:17.2]} 113... Ke6 {[%clk 0:00:15.4]} 114. Rd6+ {[%clk 0:00:17.4]}
114... Ke7 {[%clk 0:00:15.9]} 115. Rd4 {[%clk 0:00:17.5]} 115... Rh5+ {[%clk
0:00:16.2]} 116. Kc4 {[%clk 0:00:17.2]} 116... Rh6 {[%clk 0:00:16.5]} 117. Kc3
{[%clk 0:00:16.8]} 117... Rc6+ {[%clk 0:00:16.2]} 118. Kd3 {[%clk 0:00:17]}
118... Rd6 {[%clk 0:00:16.2]} 119. Ke4 {[%clk 0:00:17.2]} 119... Rxd4+ {[%clk
0:00:16.4]} 120. Kxd4 {[%clk 0:00:17.9]} 1/2-1/2

[Event "Late-Titled-Tuesday-Blitz-April-16-2024"]
[Site "Chess.com"]
[Date "2024.04.16"]
[Round "11"]
[White "IMGC"]
[Black "temus_galaktionov"]
[Result "0-1"]
[WhiteElo "2517"]
[BlackElo "2887"]
[TimeControl "180+1"]
[EndTime "16:00:39 PDT"]
[Termination "temus_galaktionov won by resignation"]

1. d4 {[%clk 0:03:00.9]} 1... c6 {[%clk 0:02:53.8]} 2. Nf3 {[%clk 0:03:00.3]}
2... d6 {[%clk 0:02:52.1]} 3. e3 {[%clk 0:03:00.8]} 3... g6 {[%clk 0:02:47.5]}
4. c4 {[%clk 0:03:01]} 4... Bg7 {[%clk 0:02:48.4]} 5. Nc3 {[%clk 0:03:01.1]}
5... Nd7 {[%clk 0:02:49]} 6. g3 {[%clk 0:02:54.7]} 6... Ngf6 {[%clk 0:02:49.9]}
7. Bg2 {[%clk 0:02:54.4]} 7... O-O {[%clk 0:02:43]} 8. O-O {[%clk 0:02:54.8]}
8... e5 {[%clk 0:02:43]} 9. dxe5 {[%clk 0:02:51.9]} 9... dxe5 {[%clk 0:02:43.9]}
10. b3 {[%clk 0:02:49.2]} 10... Re8 {[%clk 0:02:43.5]} 11. Bb2 {[%clk 0:02:48]}
11... Qc7 {[%clk 0:02:42.3]} 12. Qc2 {[%clk 0:02:45.7]} 12... Nc5 {[%clk
0:02:42.7]} 13. Rad1 {[%clk 0:02:43.6]} 13... Bf5 {[%clk 0:02:42.4]} 14. e4
{[%clk 0:02:36.7]} 14... Nfxe4 {[%clk 0:02:37.6]} 15. Nh4 {[%clk 0:02:36]} 15...
Nxg3 {[%clk 0:02:22.4]} 16. Nxf5 {[%clk 0:02:35.1]} 16... Nxf5 {[%clk
0:02:23.3]} 17. Ba3 {[%clk 0:02:27.3]} 17... Ne6 {[%clk 0:02:12.7]} 18. Ne4
{[%clk 0:02:25.9]} 18... Nfd4 {[%clk 0:02:11.5]} 19. Qc3 {[%clk 0:02:23.2]}
19... Ne2+ {[%clk 0:02:09.8]} 0-1

[Event "Late-Titled-Tuesday-Blitz-April-16-2024"]
[Site "Chess.com"]
[Date "2024.04.16"]
[Round "11"]
[White "Bryanl106"]
[Black "BabageldiAnnaberdiyev"]
[Result "1-0"]
[WhiteElo "2711"]
[BlackElo "2603"]
[TimeControl "180+1"]
[EndTime "16:01:08 PDT"]
[Termination "Bryanl106 won by resignation"]

1. e4 {[%clk 0:02:58.3]} 1... e6 {[%clk 0:03:00.5]} 2. d4 {[%clk 0:02:58.4]}
2... d5 {[%clk 0:03:01.1]} 3. Nd2 {[%clk 0:02:59]} 3... Nf6 {[%clk 0:03:00.5]}
4. e5 {[%clk 0:02:59.2]} 4... Nfd7 {[%clk 0:03:01.1]} 5. f4 {[%clk 0:02:59.9]}
5... c5 {[%clk 0:03:01.8]} 6. c3 {[%clk 0:03:00.8]} 6... Nc6 {[%clk 0:03:02.4]}
7. Ndf3 {[%clk 0:03:01.3]} 7... cxd4 {[%clk 0:02:55.4]} 8. cxd4 {[%clk
0:03:02.2]} 8... Qb6 {[%clk 0:02:55.3]} 9. a3 {[%clk 0:02:57.1]} 9... f6 {[%clk
0:02:53.5]} 10. Bd3 {[%clk 0:02:56.1]} 10... a5 {[%clk 0:02:42.2]} 11. Ne2
{[%clk 0:02:55.1]} 11... a4 {[%clk 0:02:42]} 12. Nc3 {[%clk 0:02:54.2]} 12...
Be7 {[%clk 0:02:24.1]} 13. Nxa4 {[%clk 0:02:29.7]} 13... Qa5+ {[%clk 0:02:23.5]}
14. Nc3 {[%clk 0:02:30.1]} 14... fxe5 {[%clk 0:02:24.1]} 15. fxe5 {[%clk
0:02:29.6]} 15... O-O {[%clk 0:02:24]} 16. O-O {[%clk 0:02:24.5]} 16... Rxf3
{[%clk 0:02:17.8]} 17. Qxf3 {[%clk 0:02:20.8]} 17... Nd8 {[%clk 0:02:06.8]} 18.
Qh5 {[%clk 0:02:08.3]} 18... g6 {[%clk 0:02:01.4]} 19. Bxg6 {[%clk 0:02:05.2]}
19... hxg6 {[%clk 0:02:02.3]} 20. Qxg6+ {[%clk 0:02:06.1]} 20... Kh8 {[%clk
0:02:02.7]} 21. Rf3 {[%clk 0:02:06]} 1-0

[Event "Late-Titled-Tuesday-Blitz-April-16-2024"]
[Site "Chess.com"]
[Date "2024.04.16"]
[Round "11"]
[White "Rutricks"]
[Black "Smiechu"]
[Result "1-0"]
[WhiteElo "2661"]
[BlackElo "2413"]
[TimeControl "180+1"]
[EndTime "16:01:10 PDT"]
[Termination "Rutricks won by resignation"]

1. g4 {[%clk 0:02:56.7]} 1... e5 {[%clk 0:02:58.9]} 2. Bg2 {[%clk 0:02:55.3]}
2... d6 {[%clk 0:02:52.9]} 3. c4 {[%clk 0:02:55.6]} 3... Bxg4 {[%clk 0:02:50.1]}
4. Bxb7 {[%clk 0:02:54.8]} 4... c6 {[%clk 0:02:47.9]} 5. Bxa8 {[%clk 0:02:54.8]}
5... Nf6 {[%clk 0:02:47.9]} 6. Qa4 {[%clk 0:02:47.6]} 6... Bd7 {[%clk
0:02:46.2]} 7. Qxa7 {[%clk 0:02:46.2]} 7... Be7 {[%clk 0:02:45.9]} 8. b4 {[%clk
0:02:42.5]} 8... Ne4 {[%clk 0:02:33.3]} 9. d3 {[%clk 0:02:29.1]} 9... Bg5 {[%clk
0:02:21.6]} 10. Bxg5 {[%clk 0:02:02]} 10... Qxg5 {[%clk 0:02:20.9]} 11. Qe3
{[%clk 0:02:01.8]} 11... Qxe3 {[%clk 0:01:57.7]} 12. fxe3 {[%clk 0:02:02.7]}
12... Nf6 {[%clk 0:01:55.4]} 13. a4 {[%clk 0:01:59.5]} 13... Ke7 {[%clk
0:01:53.6]} 14. b5 {[%clk 0:01:59]} 1-0

[Event "Late-Titled-Tuesday-Blitz-April-16-2024"]
[Site "Chess.com"]
[Date "2024.04.16"]
[Round "11"]
[White "picturesquecheck"]
[Black "PotapovaM"]
[Result "1-0"]
[WhiteElo "2424"]
[BlackElo "2530"]
[TimeControl "180+1"]
[EndTime "16:01:37 PDT"]
[Termination "picturesquecheck won by resignation"]

1. e4 {[%clk 0:02:58.6]} 1... e6 {[%clk 0:02:54.7]} 2. d4 {[%clk 0:02:53.3]}
2... d5 {[%clk 0:02:55.1]} 3. Nd2 {[%clk 0:02:49.3]} 3... dxe4 {[%clk
0:02:54.9]} 4. Nxe4 {[%clk 0:02:50.2]} 4... Nf6 {[%clk 0:02:55.2]} 5. Nxf6+
{[%clk 0:02:50.5]} 5... gxf6 {[%clk 0:02:54.6]} 6. Nf3 {[%clk 0:02:50.6]} 6...
b6 {[%clk 0:02:54.3]} 7. Bb5+ {[%clk 0:02:47.4]} 7... c6 {[%clk 0:02:54.3]} 8.
Bd3 {[%clk 0:02:46.6]} 8... Bb7 {[%clk 0:02:55]} 9. c3 {[%clk 0:02:46.1]} 9...
Nd7 {[%clk 0:02:55.5]} 10. Be3 {[%clk 0:02:45.9]} 10... Qc7 {[%clk 0:02:54.5]}
11. Qe2 {[%clk 0:02:46]} 11... Be7 {[%clk 0:02:52.5]} 12. O-O-O {[%clk 0:02:46]}
12... O-O-O {[%clk 0:02:51.6]} 13. Kb1 {[%clk 0:02:45.6]} 13... f5 {[%clk
0:02:51.6]} 14. Rhe1 {[%clk 0:02:41.3]} 14... Kb8 {[%clk 0:02:51.1]} 15. g3
{[%clk 0:02:40]} 15... Bd6 {[%clk 0:02:50.8]} 16. Ba6 {[%clk 0:02:35.8]} 16...
Nf6 {[%clk 0:02:50.4]} 17. Bxb7 {[%clk 0:02:34.7]} 17... Qxb7 {[%clk 0:02:51.3]}
18. Bg5 {[%clk 0:02:32.6]} 18... Be7 {[%clk 0:02:49.6]} 19. Qe5+ {[%clk
0:02:28]} 19... Ka8 {[%clk 0:02:39]} 20. Bxf6 {[%clk 0:02:27.1]} 20... Rd5
{[%clk 0:02:39.4]} 21. Bxh8 {[%clk 0:02:25.6]} 21... Rxe5 {[%clk 0:02:39.6]} 22.
Bxe5 {[%clk 0:02:26.5]} 22... c5 {[%clk 0:02:37.9]} 23. Re3 {[%clk 0:02:12.6]}
23... c4 {[%clk 0:02:22.1]} 24. d5 {[%clk 0:02:09.4]} 24... Bc5 {[%clk
0:02:21.1]} 25. dxe6 {[%clk 0:01:43.5]} 1-0

[Event "Late-Titled-Tuesday-Blitz-April-16-2024"]
[Site "Chess.com"]
[Date "2024.04.16"]
[Round "11"]
[White "shirovin"]
[Black "expii"]
[Result "1-0"]
[WhiteElo "2050"]
[BlackElo "2177"]
[TimeControl "180+1"]
[EndTime "16:01:43 PDT"]
[Termination "shirovin won by resignation"]

1. e4 {[%clk 0:03:00.9]} 1... c5 {[%clk 0:02:58.3]} 2. Nf3 {[%clk 0:03:00]} 2...
d6 {[%clk 0:02:58.5]} 3. d4 {[%clk 0:03:00.4]} 3... cxd4 {[%clk 0:02:59.4]} 4.
Nxd4 {[%clk 0:03:00.7]} 4... Nf6 {[%clk 0:02:59.8]} 5. Nc3 {[%clk 0:03:01.2]}
5... g6 {[%clk 0:02:58.1]} 6. Be3 {[%clk 0:02:59.8]} 6... Bg7 {[%clk 0:02:58.3]}
7. Be2 {[%clk 0:02:59.9]} 7... O-O {[%clk 0:02:58.5]} 8. O-O {[%clk 0:02:59.5]}
8... Nc6 {[%clk 0:02:58.7]} 9. Nb3 {[%clk 0:02:59.7]} 9... Ne5 {[%clk
0:02:58.1]} 10. f4 {[%clk 0:02:56.1]} 10... Neg4 {[%clk 0:02:57.5]} 11. Bd4
{[%clk 0:02:48.3]} 11... e5 {[%clk 0:02:57.3]} 12. fxe5 {[%clk 0:02:46]} 12...
dxe5 {[%clk 0:02:58.2]} 13. Bc5 {[%clk 0:02:45.6]} 13... Re8 {[%clk 0:02:54.4]}
14. Qxd8 {[%clk 0:02:42.2]} 14... Rxd8 {[%clk 0:02:55.3]} 15. h3 {[%clk
0:02:41.4]} 15... Nh6 {[%clk 0:02:53.3]} 16. g4 {[%clk 0:02:31.2]} 16... g5
{[%clk 0:02:53.3]} 17. Be3 {[%clk 0:02:23.6]} 17... Be6 {[%clk 0:02:51.3]} 18.
Bxg5 {[%clk 0:02:22.1]} 18... Bxb3 {[%clk 0:02:51.3]} 19. axb3 {[%clk
0:02:21.1]} 19... Rd6 {[%clk 0:02:52.1]} 20. Be3 {[%clk 0:02:13.8]} 20... Nd7
{[%clk 0:02:51.2]} 21. Rfd1 {[%clk 0:02:11.6]} 21... Rxd1+ {[%clk 0:02:50.9]}
22. Rxd1 {[%clk 0:02:10.9]} 22... Nb6 {[%clk 0:02:51.8]} 23. Nd5 {[%clk
0:02:02.8]} 23... Nxd5 {[%clk 0:02:51.2]} 24. Rxd5 {[%clk 0:01:59.3]} 24... Rc8
{[%clk 0:02:51.8]} 25. Bd3 {[%clk 0:01:56.1]} 25... f6 {[%clk 0:02:05.7]} 26.
Rd7 {[%clk 0:01:51.5]} 26... Nf7 {[%clk 0:01:52.6]} 27. Bc4 {[%clk 0:01:49.3]}
1-0

[Event "Late-Titled-Tuesday-Blitz-April-16-2024"]
[Site "Chess.com"]
[Date "2024.04.16"]
[Round "11"]
[White "only_strong_moves"]
[Black "laskakid"]
[Result "0-1"]
[WhiteElo "2634"]
[BlackElo "2401"]
[TimeControl "180+1"]
[EndTime "16:02:20 PDT"]
[Termination "laskakid won by resignation"]

1. d4 {[%clk 0:03:00.9]} 1... d6 {[%clk 0:02:59.6]} 2. Nc3 {[%clk 0:03:00.6]}
2... Nf6 {[%clk 0:02:52.1]} 3. e4 {[%clk 0:03:01.2]} 3... e5 {[%clk 0:02:50.4]}
4. dxe5 {[%clk 0:02:59.9]} 4... dxe5 {[%clk 0:02:50.7]} 5. Qxd8+ {[%clk
0:03:00.7]} 5... Kxd8 {[%clk 0:02:50.9]} 6. Nf3 {[%clk 0:03:01.6]} 6... Bd6
{[%clk 0:02:50.2]} 7. Bg5 {[%clk 0:03:02.2]} 7... Be6 {[%clk 0:02:49.1]} 8.
O-O-O {[%clk 0:03:01.8]} 8... Nd7 {[%clk 0:02:49.1]} 9. Nb5 {[%clk 0:02:59.5]}
9... Ke7 {[%clk 0:02:48.7]} 10. Nh4 {[%clk 0:02:48.8]} 10... h6 {[%clk
0:02:34.4]} 11. Bxf6+ {[%clk 0:02:46.8]} 11... Nxf6 {[%clk 0:02:34.6]} 12. Nxd6
{[%clk 0:02:47.1]} 12... cxd6 {[%clk 0:02:34.4]} 13. Bd3 {[%clk 0:02:47.8]}
13... g6 {[%clk 0:02:27]} 14. g3 {[%clk 0:02:46.4]} 14... Rac8 {[%clk 0:02:15]}
15. Rhe1 {[%clk 0:02:46]} 15... Bxa2 {[%clk 0:02:10]} 16. f4 {[%clk 0:02:41.7]}
16... Bc4 {[%clk 0:02:03]} 17. fxe5 {[%clk 0:02:34.4]} 17... dxe5 {[%clk
0:02:01.4]} 18. Nf3 {[%clk 0:02:34.9]} 18... Ke6 {[%clk 0:01:50.1]} 19. Re3
{[%clk 0:02:19.7]} 19... Bxd3 {[%clk 0:01:40.4]} 20. Rexd3 {[%clk 0:02:20.6]}
20... Nxe4 {[%clk 0:01:39.5]} 21. Rd5 {[%clk 0:02:12.8]} 21... f6 {[%clk
0:01:31.7]} 22. Rd7 {[%clk 0:02:12.3]} 22... Nc5 {[%clk 0:01:19.6]} 23. R1d6+
{[%clk 0:02:09.2]} 23... Kf5 {[%clk 0:01:19.7]} 24. Rf7 {[%clk 0:02:09.3]} 24...
Ne4 {[%clk 0:01:13]} 25. h3 {[%clk 0:02:00.7]} 25... Nxd6 {[%clk 0:01:05.4]} 0-1

[Event "Late-Titled-Tuesday-Blitz-April-16-2024"]
[Site "Chess.com"]
[Date "2024.04.16"]
[Round "11"]
[White "LuisFSiles"]
[Black "RantomOpening"]
[Result "0-1"]
[WhiteElo "2409"]
[BlackElo "2534"]
[TimeControl "180+1"]
[EndTime "16:02:26 PDT"]
[Termination "RantomOpening won by resignation"]

1. e4 {[%clk 0:03:00.9]} 1... c5 {[%clk 0:02:59.9]} 2. Nf3 {[%clk 0:03:00.6]}
2... e6 {[%clk 0:02:59.8]} 3. c3 {[%clk 0:02:59.9]} 3... Nf6 {[%clk 0:03:00.2]}
4. e5 {[%clk 0:03:00]} 4... Nd5 {[%clk 0:03:00.9]} 5. Bc4 {[%clk 0:03:00.4]}
5... d6 {[%clk 0:03:00.7]} 6. d4 {[%clk 0:03:00.3]} 6... cxd4 {[%clk 0:03:01.6]}
7. cxd4 {[%clk 0:03:01.2]} 7... dxe5 {[%clk 0:03:02.3]} 8. dxe5 {[%clk
0:03:00.6]} 8... Be7 {[%clk 0:03:03]} 9. O-O {[%clk 0:03:00]} 9... O-O {[%clk
0:03:03.6]} 10. Qe2 {[%clk 0:02:58]} 10... Bd7 {[%clk 0:03:03.6]} 11. Bd2 {[%clk
0:02:55.4]} 11... Bc6 {[%clk 0:03:03.8]} 12. Nc3 {[%clk 0:02:53.9]} 12... Nxc3
{[%clk 0:03:01.8]} 13. Bxc3 {[%clk 0:02:54.8]} 13... Qc7 {[%clk 0:03:02.1]} 14.
Rac1 {[%clk 0:02:47.3]} 14... Bxf3 {[%clk 0:02:56.4]} 15. gxf3 {[%clk
0:02:44.7]} 15... Nc6 {[%clk 0:02:50.2]} 16. f4 {[%clk 0:02:42.5]} 16... Qb6
{[%clk 0:02:44]} 17. Qe4 {[%clk 0:02:32.6]} 17... Rfd8 {[%clk 0:02:38.7]} 18. f5
{[%clk 0:02:24.8]} 18... Nd4 {[%clk 0:02:37]} 19. fxe6 {[%clk 0:01:57.9]} 19...
Nxe6 {[%clk 0:02:37.9]} 20. Rfd1 {[%clk 0:01:44.9]} 20... Bg5 {[%clk 0:02:23.2]}
21. Rb1 {[%clk 0:01:35.2]} 21... g6 {[%clk 0:02:15.7]} 22. h4 {[%clk 0:01:34.7]}
22... Be7 {[%clk 0:02:03.6]} 23. Kg2 {[%clk 0:01:33.1]} 23... h5 {[%clk
0:01:55.1]} 24. f4 {[%clk 0:01:29.9]} 24... Nc5 {[%clk 0:01:53.1]} 25. Qc2
{[%clk 0:01:20.3]} 25... Qc6+ {[%clk 0:01:51.9]} 26. Kh3 {[%clk 0:01:12.6]}
26... Qf3+ {[%clk 0:01:51]} 0-1

[Event "Late-Titled-Tuesday-Blitz-April-16-2024"]
[Site "Chess.com"]
[Date "2024.04.16"]
[Round "11"]
[White "Yushko_Olga"]
[Black "Caterpiller35"]
[Result "1-0"]
[WhiteElo "2344"]
[BlackElo "2491"]
[TimeControl "180+1"]
[EndTime "16:02:51 PDT"]
[Termination "Yushko_Olga won on time"]

1. d4 {[%clk 0:02:59.6]} 1... Nf6 {[%clk 0:00:03.1]} 2. c4 {[%clk 0:02:59.2]}
2... e6 {[%clk 0:00:03.6]} 3. Nc3 {[%clk 0:02:58.8]} 3... Bb4 {[%clk 0:00:04.3]}
4. Bd2 {[%clk 0:02:58.3]} 4... d5 {[%clk 0:00:02]} 5. cxd5 {[%clk 0:02:58]} 5...
exd5 {[%clk 0:00:02.6]} 6. Nf3 {[%clk 0:02:55.7]} 6... Bxc3 {[%clk 0:00:03.5]}
7. Bxc3 {[%clk 0:02:55.2]} 7... O-O {[%clk 0:00:04.4]} 8. e3 {[%clk 0:02:55.4]}
8... c6 {[%clk 0:00:05.3]} 9. Bd3 {[%clk 0:02:54.9]} 9... Bg4 {[%clk 0:00:06.2]}
10. O-O {[%clk 0:02:53.4]} 10... Bh5 {[%clk 0:00:04.1]} 11. Rb1 {[%clk
0:02:50.4]} 11... Nbd7 {[%clk 0:00:04.2]} 12. b4 {[%clk 0:02:50.2]} 12... a6
{[%clk 0:00:04.6]} 13. a4 {[%clk 0:02:49.9]} 13... Ne4 {[%clk 0:00:05.2]} 14.
Bb2 {[%clk 0:02:43.9]} 14... Nb6 {[%clk 0:00:05.4]} 15. Be2 {[%clk 0:02:40.1]}
15... Re8 {[%clk 0:00:05.2]} 16. Qc2 {[%clk 0:02:32.6]} 16... Qd6 {[%clk
0:00:04.3]} 17. Ba3 {[%clk 0:02:31.2]} 17... Qf6 {[%clk 0:00:04.2]} 18. Ne5
{[%clk 0:02:24.4]} 1-0